bitfinex/quotes_ETHUSD_20251128
["timestamp","ask_amount","ask_price","bid_price","bid_amount"]
[1764292455602,0.4597,3000.3,3000.0,4.0833114]
[1764292456476,0.4597,3000.3,3000.0,0.75]
[1764292456676,0.4597,3000.3,3000.0,4.08330403]
[1764292456973,0.213,3000.4,3000.0,0.75]
[1764292457173,0.6727,3000.4,3000.0,4.08329361]
[1764292457401,0.2816,3000.1,3000.0,4.08329361]
[1764292457623,0.213,3000.4,3000.0,4.08329361]
[1764292457771,0.4597,3000.8,3000.0,4.08329361]
[1764292457976,0.213,3000.7,3000.0,7.90512694]
[1764292458210,0.2816,3000.1,3000.0,0.75]
[1764292458699,0.4579,3000.6,3000.0,0.75]
[1764292459281,0.4579,3000.6,3000.0,4.08329431]
[1764292459680,0.41451156,3000.5,3000.0,0.75]
[1764292460005,0.41451156,3000.5,3000.0,4.0833125]
[1764292460198,0.4597,3000.5,3000.0,0.75]
[1764292460706,0.2816,3000.1,3000.0,0.75]
[1764292460896,0.4946,3000.1,3000.0,0.75]
[1764292461392,0.9525,3000.1,3000.0,0.75]
[1764292462686,4.32738749,3000.1,3000.0,0.75]
[1764292462887,1.77021492,3000.1,3000.0,0.75]
[1764292463618,1.42516527,3000.1,3000.0,0.75]
[1764292463817,0.431,2999.5,2998.1,0.4885]
[1764292464016,0.1,2999.5,2998.1,0.4885]
[1764292464218,0.6487,2999.4,2997.8,0.6756]
[1764292464396,0.405504,2999.3,2998.0,6.86450743]
[1764292464596,0.213,2999.2,2998.1,0.5885]
[1764292464800,0.189,2999.4,2998.1,0.5885]
[1764292464801,0.213,2999.1,2998.1,0.5885]
[1764292465210,0.189,2999.4,2998.1,0.5885]
[1764292465411,0.04166805,2999.9,2998.5,10.00500249]
[1764292465412,0.50136805,2999.9,2998.5,10.00500249]
[1764292465613,0.213,2999.8,2998.6,0.4885]
[1764292465822,0.41478169,2999.7,2998.7,1.03935025]
[1764292466123,0.91615252,2999.7,2998.7,1.03935025]
[1764292466318,0.91615252,2999.7,2998.8,0.4885]
[1764292466629,0.50137083,2999.7,2998.8,0.4885]
[1764292467342,0.50137083,2999.7,2998.9,6.669112]
[1764292467893,0.50137083,2999.7,2998.9,7.157612]
[1764292468217,0.91459411,3000.2,2999.0,0.4885]
[1764292468218,0.04167222,2999.6,2999.0,0.4885]
[1764292468440,0.04166527,3000.1,2999.1,1.0492168]
[1764292468594,0.04166527,3000.1,2999.5,0.6444]
[1764292468800,0.25466527,3000.1,2999.5,0.6444]
[1764292469102,0.25466527,3000.1,2999.6,0.4885]
[1764292469332,0.25466527,3000.1,2999.7,6.6673334]
[1764292469498,0.25466527,3000.1,2999.7,3.3336667]
[1764292470209,0.71436527,3000.1,2999.7,3.3336667]
[1764292471205,0.25466527,3000.1,2999.6,3.33373887]
[1764292471407,0.213,3000.0,2999.6,3.33373887]
[1764292471630,0.04166805,2999.9,2999.6,3.33373887]
[1764292472300,0.04166805,2999.9,2999.6,6.6675167]
[1764292472729,0.213,3000.0,2999.6,7.1560167]
[1764292473123,0.213,3000.0,2999.9,0.4573]
[1764292473635,0.213,3000.1,2999.9,3.79074444]
[1764292474348,0.213,3000.1,3000.0,0.4573]
[1764292474503,0.0416625,3000.3,3000.0,0.4573]
[1764292474836,0.213,3000.2,3000.0,0.4573]
[1764292475036,0.04166527,3000.1,3000.0,0.4573]
[1764292475199,0.04166527,3000.1,2999.9,3.33343862]
[1764292475837,0.04166527,3000.1,2999.8,3.33355557]
[1764292476337,0.30675868,3000.0,2999.8,3.33355557]
[1764292476538,0.04166527,3000.1,2999.8,3.33355557]
[1764292476722,0.30679478,3000.0,2999.8,3.33355557]
[1764292476931,0.04166527,3000.1,2999.8,3.33355557]
[1764292477229,0.30679408,3000.0,2999.8,3.33355557]
[1764292477437,0.30679408,2999.9,2999.8,3.33355557]
[1764292477812,0.30679408,2999.9,2999.8,3.79085557]
[1764292478407,0.30679408,2999.9,2999.6,6.66755566]
[1764292478706,0.30679408,2999.8,2999.6,6.66755566]
[1764292478907,0.04166527,3000.1,2999.7,0.4885]
[1764292479206,0.30749147,3000.0,2999.7,0.9458]
[1764292479405,0.30749147,2999.9,2999.7,0.9458]
[1764292479608,0.30749147,2999.8,2999.7,0.9458]
[1764292479929,0.30749147,2999.8,2999.6,6.66755566]
[1764292480129,0.213,3000.1,2999.7,0.4573]
[1764292480332,0.213,3000.1,3000.0,0.4573]
[1764292480530,0.30762201,3000.1,3000.0,3.79063333]
[1764292481044,0.04165972,3000.5,3000.0,10.93489999]
[1764292481234,0.30767582,3000.4,3000.3,0.1945]
[1764292481626,0.30767582,3000.4,3000.3,0.4503]
[1764292482533,0.30767582,3000.4,3000.3,3.78330003]
[1764292484702,6.38,3000.8,3000.3,8.37275093]
[1764292484904,0.30762163,3000.7,3000.4,0.9279]
[1764292485140,0.30762163,3000.6,3000.4,0.9279]
[1764292485436,0.30762163,3000.5,3000.4,0.9279]
[1764292485641,0.30762163,3000.5,3000.4,0.4776]
[1764292485839,0.30762163,3000.5,3000.4,0.9279]
[1764292486706,0.30762163,3000.5,3000.4,4.26078894]
[1764292487410,0.04165694,3000.7,3000.4,7.59367788]
[1764292487610,0.30750178,3000.6,3000.4,7.59367788]
[1764292487830,0.04165694,3000.7,3000.4,7.59367788]
[1764292488043,0.04165694,3000.7,3000.4,4.26078894]
[1764292488513,0.04165694,3000.7,3000.4,7.59367788]
[1764292488842,0.4886,3000.5,2999.7,0.4776]
[1764292489035,0.04166111,3000.4,2999.8,6.66711114]
[1764292489234,0.04166111,3000.4,2999.8,7.14471114]
[1764292489554,0.04166111,3000.4,2999.8,6.66711114]
[1764292489753,0.04166111,3000.4,2999.9,0.4776]
[1764292489964,0.04165972,3000.5,2999.9,0.4776]
[1764292490960,6.38,3000.8,2999.9,0.4776]
[1764292490961,0.002,3001.9,3000.6,0.4503]
[1764292491160,0.002,3001.9,3000.4,0.1945]
[1764292491161,0.002,3001.9,3001.8,0.4503]
[1764292491361,0.002,3001.9,3001.5,5.69100995]
[1764292491362,0.002,3001.9,3001.5,0.4776]
[1764292491562,0.002,3001.9,3001.4,0.1187]
[1764292491944,0.002,3001.9,3001.4,0.5963]
[1764292492542,0.215,3001.9,3001.4,0.5963]
[1764292492867,0.215,3001.9,3001.5,6.66333498]
[1764292493368,0.4006,3001.9,3001.5,3.33166749]
[1764292493555,0.4006,3001.9,3001.1,6.6642231]
[1764292493556,0.3366,3001.6,3001.1,6.6642231]
[1764292494037,0.3366,3001.6,3001.1,7.1418231]
[1764292494370,0.8688,3001.9,3001.5,0.4503]
[1764292494371,0.215,3001.9,3001.5,0.4503]
[1764292494873,0.215,3001.9,3001.5,0.9279]
[1764292495033,0.002,3001.9,3001.6,6.663113]
[1764292495366,0.215,3001.9,3001.6,6.663113]
[1764292495563,0.002,3001.9,3001.6,6.663113]
[1764292497141,0.002,3001.9,3001.4,3.80933709]
[1764292497142,0.002,3001.9,3001.5,6.66333498]
[1764292497351,0.002,3001.9,3001.5,7.14093498]
[1764292497554,0.002,3001.9,3001.6,0.4776]
[1764292499135,0.002,3001.9,3001.3,0.4776]
[1764292499874,0.1876,3001.9,3001.3,0.4776]
[1764292500246,0.50967591,3001.8,3001.2,6.66400106]
[1764292501192,3.66850772,3001.3,3000.1,3.52768674]
[1764292501371,1.34402936,3001.2,3000.1,6.66640896]
[1764292501544,1.1122,3001.2,3000.1,7.33850896]
[1764292501874,0.4682,3001.1,3000.2,0.51093111]
[1764292502272,0.04147591,3001.4,3000.5,5.69100995]
[1764292502459,0.213,3001.1,3000.5,5.69100995]
[1764292502648,0.213,3001.1,3000.6,1.046701]
[1764292502854,0.213,3001.2,3000.6,0.4776]
[1764292503063,0.213,3001.2,3000.7,6.66511146]
[1764292504276,0.4668,3001.1,3000.2,3.81071112]
[1764292504444,0.4668,3001.1,3000.2,6.66622224]
[1764292505269,0.86797724,3001.1,3000.2,3.33311112]
[1764292505443,0.4668,3001.1,3000.2,6.66622224]
[1764292505648,0.4682,3001.0,3000.2,6.66622224]
[1764292506249,0.1856,3000.9,3000.6,0.001]
[1764292506667,0.3366,3000.7,3000.6,0.001]
[1764292507063,0.8034,3000.7,3000.6,0.001]
[1764292507782,1.44854543,3000.7,3000.6,0.001]
[1764292507959,1.0164,3000.7,3000.6,0.001]
[1764292509082,0.213,3000.8,3000.6,0.9289]
[1764292509245,0.213,3000.8,3000.7,3.33255573]
[1764292509444,0.30689102,3001.2,3000.7,7.11541146]
[1764292509645,0.04147591,3001.4,3000.8,0.03332444]
[1764292509848,0.213,3001.1,3000.8,0.03332444]
[1764292510255,0.04147591,3001.4,3001.0,0.4503]
[1764292510682,0.213,3001.3,3001.1,0.6788]
[1764292510879,0.666,3001.9,3001.2,0.9806]
[1764292511078,0.4926,3001.2,3000.7,6.66511146]
[1764292511382,0.4926,3001.2,3001.1,0.4929]
[1764292511383,0.213,3001.2,3001.1,0.4929]
[1764292512253,0.6837,3001.2,3000.7,7.38049261]
[1764292512561,0.04147591,3001.1,3000.7,6.66511146]
[1764292512967,0.37557591,3001.1,3000.7,6.66511146]
[1764292513253,0.37557591,3001.1,3000.6,0.001]
[1764292513254,0.4707,3000.8,3000.6,0.001]
[1764292513901,0.213,3001.2,3000.7,0.4666]
[1764292514057,0.04147591,3001.1,3000.9,0.4666]
[1764292514452,0.04147591,3001.1,3001.0,0.4666]
[1764292514453,0.25447591,3001.1,3001.0,0.4666]
[1764292515294,0.25447591,3001.1,3001.0,3.79882259]
[1764292515467,0.213,3001.1,3001.0,3.79882259]
[1764292515656,0.72559411,3001.8,3001.0,3.79882259]
[1764292515657,0.002,3001.9,3001.0,18.08831504]
[1764292515856,0.002,3001.9,3001.8,0.5666]
[1764292516181,0.002,3001.9,3001.8,0.4666]
[1764292516388,0.002,3001.9,3001.8,0.9375]
[1764292516680,0.002,3001.9,3001.8,1.610351]
[1764292517581,0.002,3001.9,3001.8,4.94168553]
[1764292518580,0.002,3001.9,3001.8,10.66090949]
[1764292519463,0.002,3001.9,3001.8,10.56090949]
[1764292519867,0.002,3001.9,3001.8,10.66090949]
[1764292520392,0.002,3002.6,3002.1,0.1]
[1764292520562,0.002,3002.6,3002.2,0.4666]
[1764292520756,0.002,3002.6,3002.2,1.0375]
[1764292521194,0.002,3002.6,3002.2,0.9375]
[1764292521703,0.002,3002.6,3002.2,0.4666]
[1764292521875,0.002,3002.6,3002.2,3.79749068]
[1764292523193,0.002,3002.6,3002.2,5.3143413]
[1764292523891,0.002,3002.6,3002.2,5.4143413]
[1764292524597,0.002,3002.6,3002.5,5.71922396]
[1764292524894,0.002,3003.0,3002.5,6.08582396]
[1764292524895,0.002,3002.7,3002.5,6.08582396]
[1764292525096,0.002,3002.7,3002.5,0.4666]
[1764292525670,0.002,3002.7,3002.6,0.4666]
[1764292526094,0.002,3002.7,3002.3,0.4709]
[1764292526287,0.002,3002.7,3002.4,6.66133758]
[1764292527366,0.002,3002.7,3002.6,0.4666]
[1764292528201,0.002,3002.7,3002.6,3.79704694]
[1764292529716,0.002,3002.7,3002.6,4.26794694]
[1764292529888,0.002,3002.7,3002.6,5.3641841]
[1764292530775,0.002,3002.7,3002.6,4.8932841]
[1764292530972,0.002,3002.7,3002.6,4.36794694]
[1764292535494,0.002,3002.7,3002.6,3.33044694]
[1764292535693,0.3612,3002.7,3002.6,3.33044694]
[1764292536010,0.3612,3002.7,3002.4,6.66133758]
[1764292536204,0.002,3002.7,3002.4,7.13223758]
[1764292536402,0.002,3002.7,3002.6,0.4666]
[1764292536912,0.002,3002.7,3002.6,0.9375]
[1764292537723,0.3612,3002.7,3002.5,0.03330557]
[1764292537930,0.4544,3002.7,3002.4,3.33066879]
[1764292538086,0.4544,3002.7,3002.1,0.72559411]
[1764292540410,0.4544,3002.7,3002.2,6.66178136]
[1764292540913,0.3601,3002.3,3002.2,3.33089068]
[1764292541793,0.4544,3002.7,3002.2,6.66178136]
[1764292542408,0.4544,3002.7,3002.1,0.001]
[1764292545021,0.4544,3002.7,3002.1,0.03431001]
[1764292545217,0.30835441,3002.6,3002.1,0.49061001]
[1764292545413,0.4544,3002.7,3002.1,0.49061001]
[1764292545718,0.30835465,3002.6,3002.1,0.49061001]
[1764292545921,0.002,3002.7,3002.6,0.4791]
[1764292546102,0.31035782,3002.7,3002.6,0.4791]
[1764292546494,0.002,3002.7,3002.6,0.4791]
[1764292547022,0.002,3002.7,3002.6,3.80954694]
[1764292547921,0.002,3002.7,3002.6,4.26584694]
[1764292548224,0.002,3002.7,3002.6,4.2991514]
[1764292548388,0.002,3002.7,3002.6,5.06879171]
[1764292549424,0.002,3003.0,3002.8,0.1]
[1764292549614,0.002,3003.0,3002.9,0.4791]
[1764292549815,0.31064111,3003.0,3002.9,0.4791]
[1764292550325,0.31064111,3003.0,3002.9,0.9354]
[1764292550895,0.002,3003.0,3002.9,1.6008624]
[1764292551096,0.002,3003.3,3003.1,0.1]
[1764292551305,0.002,3003.3,3003.2,0.5947]
[1764292551525,0.002,3003.3,3003.2,7.39581807]
[1764292551728,0.002,3003.3,3003.2,8.99100925]
[1764292553028,0.002,3003.3,3003.2,12.32079081]
[1764292553810,0.3667,3003.3,3003.2,3.32978156]
[1764292554120,0.3667,3003.3,3002.9,0.72559411]
[1764292554303,0.3667,3003.3,3003.0,0.03330003]
[1764292554499,0.4508,3003.2,3002.7,3.33030821]
[1764292554698,0.4508,3003.2,3002.8,0.03330225]
[1764292555125,0.4508,3003.2,3002.9,3.33011422]
[1764292555527,0.3647,3003.0,3002.9,3.36341536]
[1764292556436,0.3647,3003.0,3002.9,3.33011422]
[1764292558345,0.4508,3003.2,3002.9,6.66022844]
[1764292558540,0.4508,3003.2,3003.0,0.03330003]
[1764292558745,0.4508,3003.2,3002.8,3.33019265]
[1764292558947,0.3647,3003.0,3002.8,3.33019265]
[1764292559317,0.3647,3003.0,3002.7,6.66067206]
[1764292559515,0.002,3003.3,3002.7,3.33033603]
[1764292559516,0.6336,3002.9,3002.7,3.33033603]
[1764292559718,0.3647,3002.8,3002.7,3.33033603]
[1764292560864,1.12254954,3002.8,3002.2,6.66178001]
[1764292561154,0.30794954,3002.7,3002.5,0.001]
[1764292561321,0.4508,3002.8,3002.5,0.001]
[1764292561518,0.30795657,3002.7,3002.5,0.001]
[1764292561738,0.1828,3002.9,3002.5,0.001]
[1764292561939,0.3079557,3002.8,3002.6,0.4791]
[1764292562139,0.3079557,3002.7,3002.6,0.4791]
[1764292562338,0.43727591,3003.2,3002.6,0.4791]
[1764292562651,0.4648,3002.7,3002.5,0.001]
[1764292562846,0.72769631,3003.1,3002.5,0.001]
[1764292563053,0.4637,3002.6,3002.5,0.001]
[1764292564332,0.22427591,3003.2,3002.5,0.4801]
[1764292564673,0.213,3003.0,3002.5,0.4801]
[1764292564891,0.30785336,3002.9,3002.5,0.4801]
[1764292565077,0.3958,3003.2,3002.6,0.6655624]
[1764292565365,0.3647,3002.6,3002.5,0.001]
[1764292566135,0.4499,3002.9,3002.5,0.001]
[1764292566766,0.002,3003.3,3002.8,6.09832396]
[1764292567068,0.002,3003.3,3003.2,0.5791]
[1764292567430,0.002,3003.3,3003.2,4.36518156]
[1764292567767,0.002,3003.3,3003.2,5.44019321]
[1764292567936,0.002,3003.3,3003.2,6.26578732]
[1764292568569,0.002,3003.4,3003.3,1.23109811]
[1764292568778,0.002,3003.8,3003.7,0.1]
[1764292569072,0.002,3004.4,3003.7,0.7921]
[1764292569277,0.002,3004.4,3003.9,0.5791]
[1764292569444,0.002,3004.4,3003.9,4.63369973]
[1764292569642,0.002,3004.4,3004.0,0.72559411]
[1764292569843,0.002,3004.4,3004.3,6.35502396]
[1764292570273,0.002,3004.4,3004.3,6.83532396]
[1764292570475,0.002,3004.4,3004.3,7.54015636]
[1764292570771,0.002,3004.8,3004.4,0.72559411]
[1764292570940,0.002,3004.8,3004.7,0.5777]
[1764292571374,0.002,3004.8,3004.7,1.058]
[1764292571597,0.002,3004.8,3004.7,4.38611927]
[1764292571803,0.002,3004.8,3004.7,5.90444916]
[1764292572172,0.002,3004.8,3004.7,1.37043578]
[1764292572372,0.002,3004.8,3004.5,0.213]
[1764292572373,0.002,3004.8,3004.5,0.72559411]
[1764292572584,0.002,3004.8,3004.7,0.4777]
[1764292572970,0.002,3004.8,3004.7,0.958]
[1764292573174,0.002,3004.8,3004.7,1.058]
[1764292573787,0.002,3004.8,3004.7,4.38611927]
[1764292573998,0.002,3004.8,3004.7,4.77111432]
[1764292574577,0.002,3004.8,3004.7,5.25141432]
[1764292576281,0.002,3004.8,3004.7,5.97700843]
[1764292577721,0.002,3005.1,3004.8,1.13109811]
[1764292577883,0.1828,3007.0,3005.1,1.13109811]
[1764292577884,0.197,3005.9,3005.1,1.13109811]
[1764292578191,0.197,3005.9,3005.3,0.1]
[1764292578509,0.197,3005.9,3005.0,5.61922396]
[1764292578510,0.6689,3005.9,3005.0,5.61922396]
[1764292578720,0.3046,3005.3,3005.1,0.213]
[1764292579094,0.002,3005.5,3005.1,0.213]
[1764292579282,0.4739,3005.5,3005.1,0.313]
[1764292579683,0.4739,3005.5,3005.1,0.9244724]
[1764292579885,0.002,3005.5,3005.1,0.9244724]
[1764292580088,0.4739,3005.5,3005.1,0.9244724]
[1764292580498,0.3046,3005.2,3004.9,0.72559411]
[1764292580929,0.3046,3005.2,3004.7,0.86529505]
[1764292580930,0.0047,3005.0,3004.7,4.29339238]
[1764292581097,0.0077,3004.8,3004.7,3.32809733]
[1764292581503,0.4719,3005.1,3004.7,3.32809733]
[1764292582002,0.002,3005.5,3005.0,0.4996]
[1764292582200,0.4739,3005.5,3005.1,0.03327676]
[1764292582928,0.002,3005.5,3005.1,0.13327676]
[1764292583106,0.002,3005.5,3005.2,0.1]
[1764292583507,0.002,3005.5,3005.4,0.4996]
[1764292583835,0.002,3005.5,3005.4,0.5996]
[1764292584135,0.7782,3005.5,3005.0,3.53978164]
[1764292584340,0.4551,3005.5,3005.1,0.1]
[1764292584940,0.7782,3005.5,3005.1,0.1]
[1764292585436,0.0032,3005.2,3004.8,0.1]
[1764292585646,0.4719,3005.4,3004.8,3.42792518]
[1764292585647,0.3014,3005.1,3004.8,3.42792518]
[1764292586005,0.3014,3005.1,3004.7,3.54007822]
[1764292587327,0.3014,3005.1,3004.7,6.86819749]
[1764292587709,0.7733,3005.1,3004.7,6.86819749]
[1764292588802,0.4531,3004.8,3004.5,0.1]
[1764292589236,0.4531,3004.8,3004.5,3.42825972]
[1764292589429,0.4531,3004.6,3004.5,3.32825972]
[1764292589947,0.5867,3004.9,3004.5,3.32825972]
[1764292590853,0.4531,3004.6,3004.4,0.1]
[1764292591154,0.5867,3004.9,3004.3,3.5405011]
[1764292591353,0.5867,3004.9,3004.4,0.1]
[1764292591846,0.5867,3004.9,3004.3,3.5405011]
[1764292592023,0.5867,3004.9,3004.3,3.6405011]
[1764292592217,0.5867,3004.9,3004.3,6.96906349]
[1764292592552,0.5867,3004.9,3004.3,3.6405011]
[1764292593053,3.32747663,3005.3,3004.3,7.2964936]
[1764292593249,3.79937663,3005.3,3004.6,0.1]
[1764292593552,3.79937663,3005.3,3004.7,0.03328119]
[1764292593755,0.4719,3005.2,3004.7,0.03328119]
[1764292593956,0.4719,3005.2,3004.3,7.2964936]
[1764292593957,0.383,3004.8,3004.4,0.03328451]
[1764292594133,0.7598626,3005.2,3004.4,0.03328451]
[1764292594338,3.32760023,3005.2,3004.5,3.32834082]
[1764292594542,3.32760023,3005.2,3004.6,0.0332823]
[1764292594852,0.4015,3005.1,3004.4,3.32839902]
[1764292595052,0.4526,3004.5,3003.9,3.32897784]
[1764292595354,0.4481,3004.0,3003.5,3.64142474]
[1764292595557,0.197,3004.6,3003.5,4.03517784]
[1764292595558,0.009,3003.9,3003.5,4.03517784]
[1764292595742,0.3741,3003.6,3003.5,0.3937531]
[1764292596059,0.3741,3003.6,3003.1,3.32980352]
[1764292596060,0.5711,3003.6,3003.1,3.32980352]
[1764292596256,0.2836,3003.1,3002.7,0.1835]
[1764292596458,0.2836,3003.1,3002.7,0.001]
[1764292596636,0.7555,3003.1,3002.7,0.001]
[1764292597657,1.06246489,3003.1,3002.7,0.001]
[1764292598367,4.49235733,3003.1,3002.7,0.001]
[1764292598549,6.30566849,3003.1,3002.7,0.001]
[1764292598765,0.4376,3002.8,3002.7,0.001]
[1764292598944,0.52556489,3002.8,3002.7,0.001]
[1764292599273,0.99746489,3002.8,3002.7,0.001]
[1764292600223,5.05328412,3002.8,3002.7,0.001]
[1764292600427,5.76097315,3002.8,3002.7,0.001]
[1764292600828,5.45527446,3002.8,3002.7,0.001]
[1764292601355,1.89494934,3002.8,3002.7,0.001]
[1764292601556,4.72921923,3002.8,3002.7,0.001]
[1764292601964,0.2196,3002.8,3002.7,0.001]
[1764292602350,0.6734,3002.8,3002.7,0.001]
[1764292603055,4.00362512,3002.8,3002.7,0.001]
[1764292603260,0.6734,3002.8,3002.7,0.001]
[1764292604851,4.00362512,3002.8,3002.7,0.001]
[1764292605044,0.6734,3002.8,3002.7,0.001]
[1764292605358,0.0066,3002.8,3002.7,0.001]
[1764292605536,0.4683,3002.8,3002.7,0.001]
[1764292606139,0.213,3002.9,3002.7,0.001]
[1764292606344,0.4665,3002.8,3002.7,0.001]
[1764292607043,0.7592,3002.8,3002.7,0.001]
[1764292607736,4.08942512,3002.8,3002.7,0.001]
[1764292608069,0.9722,3002.8,3002.7,0.001]
[1764292608263,0.4538,3003.2,3002.7,0.001]
[1764292608561,0.3053,3002.8,3002.7,0.001]
[1764292609558,0.7576,3002.8,3002.7,0.001]
[1764292610337,0.9706,3002.8,3002.7,0.001]
[1764292610660,1.01207591,3002.8,3002.7,0.001]
[1764292611062,0.55977591,3002.8,3002.7,0.001]
[1764292611261,0.5183,3002.8,3002.7,0.001]
[1764292612343,0.3053,3002.8,3002.7,0.001]
[1764292612548,0.213,3002.8,3002.7,0.001]
[1764292613165,0.5198,3002.8,3002.7,0.001]
[1764292614067,0.9707,3002.8,3002.7,0.001]
[1764292614575,4.73514327,3002.8,3002.7,0.001]
[1764292614873,4.77661918,3002.8,3002.7,0.001]
[1764292615180,0.56127591,3002.8,3002.7,0.001]
[1764292615736,4.34240103,3002.8,3002.7,0.001]
[1764292616201,1.01217591,3002.8,3002.7,0.001]
[1764292616949,0.56127591,3002.8,3002.7,0.001]
[1764292617575,4.34240103,3002.8,3002.7,0.001]
[1764292617938,4.12940103,3002.8,3002.7,0.001]
[1764292618250,1.01217591,3002.8,3002.7,0.001]
[1764292619367,0.56127591,3002.8,3002.7,0.001]
[1764292619541,0.25447591,3002.8,3002.7,0.001]
[1764292619943,0.56267591,3002.8,3002.7,0.001]
[1764292620346,0.04147591,3002.8,3002.7,0.4652]
[1764292620673,0.25447591,3002.8,3002.7,0.4652]
[1764292621451,0.25447591,3002.8,3002.7,0.001]
[1764292621852,0.56407591,3002.8,3002.7,0.001]
[1764292622980,1.56407591,3002.8,3002.7,0.001]
[1764292623175,1.25447591,3002.8,3002.7,0.4652]
[1764292623648,1.25447591,3002.8,3002.7,0.001]
[1764292624351,1.56219834,3002.8,3002.7,0.001]
[1764292626189,1.86749834,3002.8,3002.7,0.001]
[1764292626392,1.56219834,3002.8,3002.7,0.001]
[1764292627555,1.30772243,3002.8,3002.7,1.0544]
[1764292627834,0.213,3003.4,3002.7,7.71507206]
[1764292628020,0.30859333,3003.3,3002.8,1.26080721]
[1764292628341,0.30859333,3003.2,3002.8,1.26080721]
[1764292628524,0.30859333,3003.1,3002.9,0.4892]
[1764292628700,0.30859333,3003.0,3002.9,0.4892]
[1764292628890,0.30859333,3003.0,3002.9,1.28144793]
[1764292629113,0.30859333,3003.0,3002.9,1.74564793]
[1764292629302,0.213,3003.4,3002.9,1.74564793]
[1764292629515,0.30845813,3003.3,3002.9,1.74564793]
[1764292629829,0.30845813,3003.2,3003.0,3.33000333]
[1764292630130,0.213,3003.9,3003.5,0.7558]
[1764292630433,0.213,3003.9,3003.5,0.2916]
[1764292630434,0.30829175,3003.8,3003.5,0.2916]
[1764292630609,0.30829175,3003.7,3003.6,0.4722]
[1764292630995,0.30829175,3003.7,3003.6,0.9228]
[1764292631697,0.213,3004.2,3003.6,0.9228]
[1764292631897,0.30821462,3004.1,3003.9,0.1]
[1764292632202,0.213,3004.2,3004.1,0.4506]
[1764292632404,0.30795508,3004.2,3004.1,0.5763]
[1764292632616,0.213,3004.3,3004.1,0.4506]
[1764292633998,0.213,3004.3,3004.2,3.32867319]
[1764292634513,0.213,3004.3,3004.2,3.22867319]
[1764292634826,0.4893,3004.3,3003.9,3.32898001]
[1764292635022,0.4893,3004.3,3003.9,6.65798563]
[1764292635223,0.213,3004.4,3004.2,0.4506]
[1764292635909,0.213,3004.4,3004.1,3.32878399]
[1764292636115,0.0028,3004.2,3003.6,3.32933812]
[1764292636435,0.1912,3003.7,3003.1,4.27462157]
[1764292636602,0.2814,3003.6,3003.1,7.60451401]
[1764292636925,0.213,3003.7,3003.2,0.50549781]
[1764292637136,0.213,3003.7,3003.2,0.4722]
[1764292637321,0.7083,3003.7,3003.1,6.95928488]
[1764292638125,0.213,3003.7,3003.6,3.79253812]
[1764292638329,0.5175,3003.7,3003.5,3.32944171]
[1764292639113,0.6916,3003.7,3003.1,0.1995]
[1764292639401,0.6916,3003.7,3003.2,3.32977294]
[1764292639906,0.213,3003.7,3003.3,0.0332967]
[1764292640112,0.213,3003.7,3003.4,3.32955983]
[1764292640933,0.3045,3003.5,3003.2,3.32976062]
[1764292641531,0.22597591,3003.9,3003.4,0.4632]
[1764292641740,0.25347591,3003.8,3003.5,0.4632]
[1764292642103,0.212,3003.8,3003.5,3.79260434]
[1764292643117,0.04147591,3004.0,3003.6,0.4782]
[1764292643319,6.592,3004.2,3003.9,0.4632]
[1764292643836,0.4516,3004.0,3003.2,3.32978156]
[1764292644049,0.04147591,3004.0,3003.2,6.65956312]
[1764292644209,0.6631,3003.9,3003.2,3.32978156]
[1764292644536,0.6631,3003.9,3003.2,6.65956312]
[1764292644703,0.4786,3003.8,3003.2,6.65956312]
[1764292645528,0.212,3003.7,3003.2,6.65956312]
[1764292646142,0.4786,3003.7,3003.2,7.13776312]
[1764292646437,0.212,3003.6,3003.2,3.32978156]
[1764292646842,0.6906,3003.6,3003.2,3.32978156]
[1764292647511,0.3045,3003.3,3002.7,0.1267]
[1764292647812,0.4769,3003.5,3002.8,3.33022512]
[1764292648435,0.3062,3002.9,3002.7,0.001]
[1764292648646,0.212,3003.1,3002.7,0.001]
[1764292648809,0.4918,3002.8,3002.7,0.001]
[1764292650310,0.212,3003.0,3002.7,0.4642]
[1764292650808,3.32969091,3003.3,3002.9,0.4632]
[1764292651005,0.54496909,3003.2,3002.9,0.4632]
[1764292651344,3.3291287,3003.8,3003.2,0.4632]
[1764292651509,3.3291287,3003.8,3002.9,0.4782]
[1764292651510,0.30731814,3003.7,3003.3,0.0332967]
[1764292651841,0.212,3003.6,3003.1,0.1]
[1764292652040,0.212,3003.6,3003.2,0.03329781]
[1764292652239,0.212,3003.6,3003.2,0.70509781]
[1764292652610,0.04147591,3003.9,3003.3,3.80787069]
[1764292652808,0.212,3003.8,3003.4,0.03329559]
[1764292653013,0.212,3003.8,3003.3,3.32967069]
[1764292653219,0.73207591,3003.8,3003.3,3.32967069]
[1764292653438,0.212,3003.8,3003.4,0.03329559]
[1764292653642,0.212,3003.8,3003.4,0.51149559]
[1764292654918,0.212,3003.8,3003.4,3.84100985]
[1764292655114,0.30757996,3003.9,3003.4,0.51149559]
[1764292655335,0.212,3003.8,3003.4,0.03329559]
[1764292655524,0.6906,3003.8,3003.4,0.03329559]
[1764292655720,0.212,3003.8,3003.4,0.03329559]
[1764292656132,0.25347591,3003.8,3003.3,3.32963536]
[1764292656449,0.4786,3003.7,3003.4,0.03329559]
[1764292656648,0.4786,3003.7,3003.3,3.32963536]
[1764292656849,0.212,3003.8,3003.4,0.03329559]
[1764292657050,0.212,3003.8,3003.4,3.36280801]
[1764292657349,0.73207591,3003.8,3003.4,0.03329559]
[1764292657831,0.73207591,3003.8,3003.4,3.36283614]